Cogmind - Beta 14 @@@ ROGUE MODE // 2024.10.18 @ 22:46:49 Player: Blanco! Result: Destroyed by G-47 Trooper with Particle Gun Performance ------------- Evolutions (1) 500 Regions Visited (2) 400 Robots Destroyed (9) 45 Value Destroyed (262) 262 Prototype IDs (1) 20 Alien Tech Used (0) 0 Bonus (0) 0 TOTAL SCORE: 1227 Bonus ------- None Cogmind --------- Core Integrity 0/400 Matter 300/300 Energy 250/250 System Corruption 8% Temperature Cool (9) Movement Treading (240) Ox1 Location -9/Materials Parts ------- > --- POWER (2) -------- Ion Engine > --- PROPULSION (2) --- Light Treads (fused) > --- UTILITY (3) ------ Large Storage Unit Targeting Computer > --- WEAPON (2) ------- Hammer > --- INVENTORY (15) --- Aluminum Leg Aluminum Leg Improved Aluminum Leg Compact Wheel Small Storage Unit Large Storage Unit Visual Processing Unit Faulty Advanced Beam Cannon Peak State ------------ > --- POWER ------------ Ion Engine Ion Engine > --- PROPULSION ------- Wheel Compact Wheel > --- UTILITY ---------- Large Storage Unit Propulsion Shielding Light Armor Plating > --- WEAPON ----------- Advanced Beam Cannon Improved Light Cannon > --- INVENTORY -------- Ion Engine Light Treads Light Treads Aluminum Leg Aluminum Leg Improved Aluminum Leg Small Storage Unit Large Storage Unit Visual Processing Unit Targeting Computer Shield Generator Medium Laser [Rating: 13] Favorites ----------- Power Ion Engine Engine Ion Engine Propulsion Wheel Treads Light Treads Wheel Wheel Utility Large Storage Unit Device Shield Generator Storage Large Storage Unit Processor Targeting Computer Protection Light Armor Plating Weapon Assault Rifle Energy Gun Medium Laser Energy Cannon Advanced Beam Cannon Ballistic Gun Assault Rifle Ballistic Cannon Improved Light Cannon Impact Weapon Hammer Build | -11 -10 -9 ------- Run | Yrd Mat Mat Slots Evolved 2 | . . 2 Power 1 | . . 1 Propulsion . | . . . Utility 1 | . . 1 Weapon . | . . . Parts Attached 22 | 6 3 13 Power 4 | 1 . 3 Engine 4 | 1 . 3 Core . | . . . Reactor . | . . . Propulsion 4 | 2 . 2 Treads 2 | . . 2 Leg . | . . . Wheel 2 | 2 . . Hover . | . . . Flight . | . . . Utility 6 | 1 2 3 Device 1 | . . 1 Storage 2 | 1 1 . Processor 1 | . . 1 Hackware . | . . . Protection 2 | . 1 1 Artifact . | . . . Weapon 8 | 2 1 5 Energy Gun 3 | 1 1 1 Energy Cannon 2 | . . 2 Ballistic Gun 1 | 1 . . Ballistic Cannon 1 | . . 1 Launcher . | . . . Special Weapon . | . . . Impact Weapon 1 | . . 1 Slashing Weapon . | . . . Piercing Weapon . | . . . Special Melee Weapon . | . . . Unidentified Prototypes 1 | . . 1 Parts Lost 12 | . 1 11 Power 3 | . . 3 Propulsion 2 | . . 2 Utility 3 | . . 3 Weapon 4 | . 1 3 Highest Loss Streak 11 | . 1 11 To Critical Strikes . | . . . Average Slot Usage (%) 87 | . 96 79 Engine 15 | . 14 15 Treads 3 | . . 6 Wheel 20 | . 28 13 Storage 12 | . 14 11 Protection 11 | . 10 12 Energy Gun 9 | . 14 5 Ballistic Gun 9 | . 14 4 Ballistic Cannon 2 | . . 4 Impact Weapon 1 | . . 2 Peak Build Rating 13 | 6 8 13 Average Rating 7 | 4 6 8 On Entrance 4 | . 6 8 Naked Turns . | . . . Heaviest Build 42 | 14 32 42 Greatest Support 40 | 26 26 40 Greatest Overweight (x) 1 | . 1 1 Average Overweight (x) . | . . . Largest Inventory Capacity 15 | 8 15 15 Average Capacity 11 | 7 9 15 Most Carried 13 | 7 9 13 Average Carried 8 | 4 7 10 Final Capacity 15 | 8 15 15 Final Carried 9 | 6 9 8 Class Distribution -------------------- 100% | Mutant Dominant Class ---------------- Mutant | -10/Materials Mutant | -9/Materials Resources | -11 -10 -9 ----------- Run | Yrd Mat Mat Matter Collected 402 | 225 36 141 Remotely . | . . . Salvage Created 200 | . 36 164 Parts 10 | . 3 7 Haulers Intercepted . | . . . Recyclers Shooed . | . . . Parts Field Recycled . | . . . Retrieved Matter . | . . . Parts Self-Destructed . | . . . Prevented . | . . . Kills | -11 -10 -9 ------- Run | Yrd Mat Mat Combat Hostiles Destroyed 8 | . 1 7 Melee 3 | . . 3 Guns 1 | . 1 . Cannons 3 | . . 3 Classes Destroyed 4 | . 2 2 Watcher 1 | . 1 . Swarmer 2 | . . 2 Grunt 5 | . 1 4 Brawler 1 | . . 1 Best Kill Streak 4 | . 1 4 Combat Bots Only 4 | . 1 4 Max Kills in Single Turn 1 | . 1 1 Gunslinging . | . . . Exploded . | . . . Melee 1 | . . 1 Uniques/NPCs Destroyed . | . . . Combat | -11 -10 -9 -------- Run | Yrd Mat Mat Hostile Shots Fired 127 | . 10 117 Missed 28 | . 2 26 Damage Taken 1495 | . 333 1162 Core 431 | . 24 407 Absorbed by Shields 31 | . . 31 Redirected to Shielding 52 | . . 52 Core Remaining (%) 95 | 100 90 . Volleys Fired 14 | . 5 9 Largest 2 | . 2 2 Hottest 89 | . 70 89 Shots Fired 28 | . 10 18 Gun 19 | . 10 9 Cannon 9 | . . 9 Launcher . | . . . Special . | . . . Kinetic 17 | . 5 12 Thermal 11 | . 5 6 Explosive . | . . . Electromagnetic . | . . . Robot Hit Streak 7 | . 5 7 Robot Miss Streak 4 | . 4 1 Penetration Max . | . . . Secondary Targets . | . . . Shots Hit Robots 21 | . 5 16 Core Hits 9 | . 4 5 Critical Kills . | . . . Critical Parts Destroyed . | . . . Critical Strikes . | . . . Melee Attacks 5 | . . 5 Impact 5 | . . 5 Slashing . | . . . Piercing . | . . . Sneak Attacks . | . . . Combat Hostiles . | . . . Follow-up Attacks . | . . . Damage Inflicted 646 | . 266 380 Guns 115 | . 63 52 Cannons 188 | . . 188 Explosions 181 | . 181 . Melee 117 | . . 117 Ramming 45 | . 22 23 Kinetic 227 | . 25 202 Thermal 76 | . 38 38 Explosive 181 | . 181 . Electromagnetic . | . . . Impact 117 | . . 117 Slashing . | . . . Piercing . | . . . Highest Corruption 8 | . . 8 Average Corruption 6 | . . 6 Corruption Purged . | . . . Corruption Blocked . | . . . Effects 4 | . . 4 Matter Fused 1 | . . 1 Heat Flow Errors 1 | . . 1 Parts Fused 1 | . . 1 Data Loss (minor) 1 | . . 1 Overload Shots . | . . . Overflow Damage 37 | . 33 4 Projectiles . | . . . Explosions 33 | . 33 . Melee 4 | . . 4 Knockbacks 4 | . . 4 Impact . | . . . Kinetic 4 | . . 4 Secondary . | . . . Self-Inflicted Damage 218 | . 217 1 Shots 2 | . 2 . Rammed 11 | . 5 6 Targets Rammed 13 | . 5 8 Kicked . | . . . Crushed 2 | . . 2 Highest Temperature 103 | . 44 103 Average Temperature 32 | . 19 38 Received Heat Transfer 582 | . 48 534 Siege Activations . | . . . Robots Corrupted 1 | . . 1 Combat Hostiles 1 | . . 1 Parts Fried 3 | . . 3 Impact Corruptions 1 | . . 1 Robots Melted . | . . . Combat Hostiles . | . . . Parts Melted . | . . . Heat Transferred 222 | . 111 111 Parts Sabotaged . | . . . Parts Stolen . | . . . Parts Stripped . | . . . Power Chain Reactions . | . . . Alert | -11 -10 -9 ------- Run | Yrd Mat Mat Peak Influence 109 | . 106 109 Initial 44 | . . 44 Average 42 | . 35 67 Maximum Alert Level . | . . . Low Security (%) 100 | 100 100 100 Level 1 . | . . . Level 2 . | . . . Level 3 . | . . . Level 4 . | . . . Level 5 . | . . . High Security . | . . . Max Security . | . . . Squads Dispatched 4 | . 3 1 Investigation 2 | . 2 . Extermination . | . . . Reinforcement 2 | . 1 1 Assault . | . . . Garrison . | . . . Intercept . | . . . Searches Triggered . | . . . Construction Impeded . | . . . Haulers Reinforced . | . . . Active Scanning Responses . | . . . Cargo Convoy Interrupts . | . . . Stealth | -11 -10 -9 --------- Run | Yrd Mat Mat Distress Signals 3 | . . 3 Communications Jammed . | . . . Distress Signals . | . . . Times Spotted 18 | . 4 14 Peak Tracking Total 11 | . 1 11 Tactical Retreats . | . . . Traps | -11 -10 -9 ------- Run | Yrd Mat Mat Traps Triggered 2 | . 2 . Indirectly . | . . . Trap Hack Attempts . | . . . Triggered . | . . . Disarmed . | . . . Reprogrammed . | . . . Reused . | . . . Traps Extracted . | . . . Installed . | . . . Triggered . | . . . Machines | -11 -10 -9 ---------- Run | Yrd Mat Mat Machines Disabled 2 | . 2 . Max in Single Turn 2 | . 2 . Machines Repaired . | . . . Machines Dismantled . | . . . Machines Sabotaged . | . . . Overloaded Fab Kills . | . . . Hacking | -11 -10 -9 --------- Run | Yrd Mat Mat Machines Accessed 1 | . 1 . Terminals 1 | . 1 . Fabricators . | . . . Repair Stations . | . . . Recycling Units . | . . . Scanalyzers . | . . . Garrison Access . | . . . Total Hacks 5 | . 5 . Successful 2 | . 2 . Failed 3 | . 3 . Catastrophic . | . . . Database Lockouts . | . . . Manual . | . . . Terminals 5 | . 5 . Fabricators . | . . . Repair Stations . | . . . Recycling Units . | . . . Scanalyzers . | . . . Garrison Access . | . . . Terminal Hacks 2 | . 2 . Alert Level 1 | . 1 . Surveillance Status 1 | . 1 . Fabricator Hacks . | . . . Repair Station Hacks . | . . . Recycling Unit Hacks . | . . . Scanalyzer . | . . . Garrison Access Hacks . | . . . Unauthorized Hacks . | . . . Terminals . | . . . Fabricators . | . . . Repair Stations . | . . . Recycling Units . | . . . Scanalyzers . | . . . Garrison Access . | . . . Data Cores Recovered . | . . . Used . | . . . Hacking Detections 1 | . 1 . Full Trace Events 1 | . 1 . Feedback Events . | . . . Feedback Blocked . | . . . Robot Schematics Acquired . | . . . Robots Built . | . . . Authchips . | . . . Time . | . . . Total Robot Build Rating . | . . . Part Schematics Acquired . | . . . Parts Built . | . . . Authchips . | . . . Time . | . . . Total Part Build Rating . | . . . Parts Repaired . | . . . Time . | . . . Parts Recycled . | . . . Recycled Matter . | . . . Retrieved Matter . | . . . Retrieved Components . | . . . Parts Scanalyzed . | . . . Part Schematics Acquired . | . . . Parts Damaged . | . . . Bothacking | -11 -10 -9 ------------ Run | Yrd Mat Mat Used RIF Installer . | . . . Robots Hacked . | . . . Non-combat . | . . . Combat . | . . . Robot Hacks Applied . | . . . Relay Couplers Released . | . . . Fabnet Peak Effective % . | . . . Robots Rewired . | . . . Allies Hacked . | . . . Hacks Repelled . | . . . Allies | -11 -10 -9 -------- Run | Yrd Mat Mat Total Allies . | . . . Largest Group . | . . . Highest-Rated Group . | . . . Highest-Rated Ally . | . . . Total Orders . | . . . Ally Attacks . | . . . Total Damage . | . . . Kills . | . . . Allies Corrupted . | . . . Allies Melted . | . . . Intel | -11 -10 -9 ------- Run | Yrd Mat Mat Robot Analysis Total . | . . . Derelict Logs Recovered . | . . . Drone Launches . | . . . Drone Recoveries . | . . . Exploration | -11 -10 -9 ------------- Run | Yrd Mat Mat Turns Passed 409 | 73 158 178 Spaces Moved 286 | 63 141 82 Core 4 | 4 . . Treads 16 | . . 16 Legs . | . . . Wheels 266 | 59 141 66 Hover . | . . . Flight . | . . . Fastest Speed 50 | 50 90 105 Average Speed 100 | 87 92 124 Slowest Speed 240 | 90 105 240 Overloaded Moves . | . . . Propulsion Burnouts . | . . . Robots Hopped . | . . . Cave-ins Triggered . | . . . Exploration Rate (%) 15 | 4 28 13 Regions Visited 2 Branch Regions . Pre-discovered Areas . | . . . Known Exits Taken . | . . . Unknown Exits Taken 2 | 1 1 . Scrap Searched . | . . . Spaces Dug . | . . . Terrain Destroyed 35 | . 35 . Melee . | . . . Projectile . | . . . AOE 35 | . 35 . Terrain Rammed . | . . . Walls Destroyed . | . . . Machines Disabled . | . . . Actions | -11 -10 -9 --------- Run | Yrd Mat Mat Total 365 | 80 158 127 Wait . | . . . Move 285 | 62 141 82 Hop . | . . . Pick Up 25 | 12 5 8 Fast Attach . | . . . Attach 19 | 6 2 11 Detach 2 | . . 2 Swap 3 | . 1 2 Drop . | . . . Fire 14 | . 5 9 Melee 5 | . . 5 Ram 5 | . 4 1 Kick . | . . . Crush 7 | . . 7 Escape Stasis . | . . . Rewire . | . . . Trap . | . . . Miscellaneous . | . . . Route ------- -11/Scrapyard -10/Materials -9/Materials History --------- Turn | Location | Event 37 | -11/Scrapyard | Discovered new exit (range 15) 74 | -11/Scrapyard | Entered Materials 208 | -10/Materials | Discovered new exit (range 14) 232 | -10/Materials | Entered another Materials area 232 | -9/Materials | Evolved 2 slots: Power x1, Utility x1 340 | -9/Materials | Build established: Mutant 366 | -9/Materials | Core integrity fell below 50% 389 | -9/Materials | Core integrity fell below 20% 410 | -9/Materials | Destroyed by G-47 Trooper with Particle Gun Last Messages --------------- 00379_ G-34 Mercenary destroyed. 00380_ K-01 Serf collects debris. 00380_ Lgt. Ion Engine destroyed. 00382_ Acquired 5 matter. 00382_ Electrolysis Chamber disabled. 00382_ Lgt. Treads destroyed. 00383_ K-01 Serf cleans the Electrolysis Chamber. 00386_ System corrupted: Lgt. Treads fused. 00386_ K-01 Serf cleans the Electrolysis Chamber. 00386_ Acquired 10 matter. 00389_ K-01 Serf cleans the Electrolysis Chamber. 00390_ W-16 Scout destroyed. 00392_ K-01 Serf collects debris. 00393_ Destroyed Heat Sink. 00393_ G-34 Mercenary system corrupted by crushing effect. 00394_ G-34 Mercenary system terminally corrupted. 00394_ Aluminum Leg fried. 00394_ Sml. Laser fried. 00394_ Ion Engine fried. 00395_ K-01 Serf collects debris. Map ----- +----------------------------------------------------+ | ?????????????????????????????????????????????????? | | ?????????????????????????????????????????????????? | | ?????????????????????????????????????????????????? | | ?????????????????????????????????????????????????? | | ?????????????????????????????????????????????????? | | ?????????????????????????????????????????????????? | | ?????????????????????????????????????????????????? | | ?????????????????????????????????????????????????? | | ????????????????????? ??????????????###########?? | | ???????????????????? ??????????????# ### | | ???????????????/ """ ???????######## # | | ?????????????!// "T" ???????# # # | | ??????????? !// ???????# [ # #] | | ??????????? o ???????# # # | | ???????????? ???????? # ! # | | ????????????? #???????? # # | | ?????????????? w #????????? # [ # | | ???????????????# = ############+######+######+ | | ???????????????# * % k | | ???????????????# ! w % % | | ???????????????# T """% """ | | ???????????????# """ """ ##############+ | | ???????????????# "" """ #?????????????? | | ???????????????# % %! #?????????????? | | ???????? + !%= ##????????????? | | ??????????"""" # @ g #??????? | | ???????????????# = k #??????? | | ???????????????# #??????? | | ???????????????# t #########a##### #??????? | | ???????????????# #????????? ?????????????? | | ???????????????# ^ ######??????????] #???????????? | | ???????????????# ^ ??????????????????#???????????? | | ???????????????# ???????????????????????????????? | | ???????????????# ???????????????????????????????? | | ???????????????# ????????????????????????????????? | | ???????????????# ????????????????????????????????? | | ???????????????#?????????????????????????????????? | | ?????????????????????????????????????????????????? | | ?????????????????????????????????????????????????? | | ?????????????????????????????????????????????????? | | ?????????????????????????????????????????????????? | | ?????????????????????????????????????????????????? | | ?????????????????????????????????????????????????? | | ?????????????????????????????????????????????????? | | ?????????????????????????????????????????????????? | | ?????????????????????????????????????????????????? | | ?????????????????????????????????????????????????? | | ?????????????????????????????????????????????????? | | ?????????????????????????????????????????????????? | | ?????????????????????????????????????????????????? | +----------------------------------------------------+ Best States ------------- Heat Dissipation 28 Energy Generation 15 Energy Capacity 400 Matter Stores 300 Matter Capacity 300 Sight Range 16 Terrain Scan Density 10 Armor Coverage 150 Propulsion Shielding 33 Evasion (%) 42 Targeting Accuracy 5 Recoil Reduction 2 Item Schematics ----------------- None Robot Schematics ------------------ None Fabricated ------------ Nothing Alien Tech Used ----------------- None Achievements -------------- None Challenges ------------ None Game ------ Seed CloakingComponentMatter Manual? 0 Play Time 00:09:46 Cumulative 9.3 hours Start 2024.10.18 @ 22:38:27 End 2024.10.18 @ 22:46:49 Sessions 1 Manual Loads 0 Difficulty Rogue Special Mode None Game No. 13 Rogue 13 Adventurer 0 Explorer 0 Win Type - Total 0 Types 0/0/0/0/0/0/0/0/0 Lore% 3 Gallery% 13 Achievement% 10 Wizard Run 0 Options --------- Layout 0 ASCII 0 Keyboard 0 Movement Arrows Keybinds 0 Fullscreen 2 Font 18/SmallcapsGlow Map View 38x25 Zoom Use 100% Tactical HUD 1 Map Filters NONE Filters NONE Steam 1 RUN: cf7f3702-2c95-404b-9784-b6ccf10de54f